[Event "Titled Tuesday Blitz October 31 Early 2023"]
[White "Ziatdinov, Raset"]
[Black "Ezat, Mohamed"]
[WhiteFideId "2015323"]
[BlackFideId "10600906"]
[WhiteElo "2412"]
[BlackElo "2580"]
[Result "1-0"]
[Round "6"]
[TimeControl "180+1"]
[Date "2023.10.31"]
[WhiteClock "0:00:08"]
[BlackClock "0:00:05"]
[Board "97"]

1. e4 {[%clk 0:02:54]}  e5 {[%clk 0:02:59]} 2. Nf3 {[%clk 0:02:52]}  Nc6 {[%clk 0:02:59]} 3. Bb5 {[%clk 0:02:51]}  Nge7 {[%clk 0:02:57]} 4. d4 {[%clk 0:02:44]}  exd4 {[%clk 0:02:55]} 5. Nxd4 {[%clk 0:02:44]}  Nxd4 {[%clk 0:02:47]} 6. Qxd4 {[%clk 0:02:41]}  c6 {[%clk 0:02:48]} 7. Bd3 {[%clk 0:02:37]}  d5 {[%clk 0:02:47]} 8. Nc3 {[%clk 0:02:36]}  Be6 {[%clk 0:02:40]} 9. Bg5 {[%clk 0:02:21]}  Qb6 {[%clk 0:02:28]} 10. Qxb6 {[%clk 0:02:10]}  axb6 {[%clk 0:02:28]} 11. Bxe7 {[%clk 0:02:10]}  Bxe7 {[%clk 0:02:28]} 12. exd5 {[%clk 0:02:10]}  cxd5 {[%clk 0:02:28]} 13. Bb5+ {[%clk 0:02:06]}  Kf8 {[%clk 0:02:28]} 14. O-O-O {[%clk 0:02:00]}  Bc5 {[%clk 0:02:21]} 15. f3 {[%clk 0:01:55]}  d4 {[%clk 0:02:19]} 16. Na4 {[%clk 0:01:50]}  Ra5 {[%clk 0:02:17]} 17. Nxc5 {[%clk 0:01:49]}  bxc5 {[%clk 0:02:17]} 18. a4 {[%clk 0:01:49]}  g6 {[%clk 0:02:08]} 19. b4 {[%clk 0:01:42]}  cxb4 {[%clk 0:02:07]} 20. Rxd4 {[%clk 0:01:41]}  b3 {[%clk 0:02:06]} 21. c4 {[%clk 0:01:37]}  Kg7 {[%clk 0:01:55]} 22. Kb2 {[%clk 0:01:37]}  Raa8 {[%clk 0:01:47]} 23. Kxb3 {[%clk 0:01:37]}  Kf6 {[%clk 0:01:43]} 24. Kb4 {[%clk 0:01:35]}  h5 {[%clk 0:01:41]} 25. h4 {[%clk 0:01:34]}  Ke5 {[%clk 0:01:39]} 26. Rhd1 {[%clk 0:01:33]}  Kf6 {[%clk 0:01:38]} 27. c5 {[%clk 0:01:29]}  Rhc8 {[%clk 0:01:36]} 28. Rd6 {[%clk 0:01:26]}  Ke7 {[%clk 0:01:30]} 29. Rb6 {[%clk 0:01:26]}  Rc7 {[%clk 0:01:29]} 30. Re1 {[%clk 0:01:13]}  Rac8 {[%clk 0:01:23]} 31. Re5 {[%clk 0:01:11]}  Kf6 {[%clk 0:01:21]} 32. f4 {[%clk 0:01:11]}  Rd8 {[%clk 0:01:21]} 33. g3 {[%clk 0:00:54]}  Rd2 {[%clk 0:01:20]} 34. c6 {[%clk 0:00:31]}  bxc6 {[%clk 0:01:13]} 35. Rxc6 {[%clk 0:00:30]}  Rb2+ {[%clk 0:01:02]} 36. Kc5 {[%clk 0:00:28]}  Ra7 {[%clk 0:00:52]} 37. Re3 {[%clk 0:00:18]}  Kg7 {[%clk 0:00:46]} 38. Rc3 {[%clk 0:00:16]}  Ra8 {[%clk 0:00:44]} 39. Rb6 {[%clk 0:00:15]}  Rc8+ {[%clk 0:00:41]} 40. Bc6 {[%clk 0:00:14]}  Bd7 {[%clk 0:00:38]} 41. Rxb2 {[%clk 0:00:14]}  Rxc6+ {[%clk 0:00:38]} 42. Kb4 {[%clk 0:00:14]}  Ra6 {[%clk 0:00:38]} 43. a5 {[%clk 0:00:14]}  Ra8 {[%clk 0:00:38]} 44. Rc5 {[%clk 0:00:14]}  Rb8+ {[%clk 0:00:37]} 45. Kc3 {[%clk 0:00:14]}  Re8 {[%clk 0:00:36]} 46. Kd4 {[%clk 0:00:14]}  Bf5 {[%clk 0:00:35]} 47. Rb6 {[%clk 0:00:13]}  Re4+ {[%clk 0:00:35]} 48. Kc3 {[%clk 0:00:13]}  Re3+ {[%clk 0:00:34]} 49. Kb4 {[%clk 0:00:14]}  Be6 {[%clk 0:00:30]} 50. a6 {[%clk 0:00:13]}  Rb3+ {[%clk 0:00:29]} 51. Ka5 {[%clk 0:00:12]}  Ra3+ {[%clk 0:00:29]} 52. Kb5 {[%clk 0:00:13]}  Rxg3 {[%clk 0:00:26]} 53. Rxe6 {[%clk 0:00:06]}  fxe6 {[%clk 0:00:24]} 54. a7 {[%clk 0:00:06]}  Ra3 {[%clk 0:00:24]} 55. Kb6 {[%clk 0:00:07]}  Rb3+ {[%clk 0:00:22]} 56. Rb5 {[%clk 0:00:07]}  Ra3 {[%clk 0:00:21]} 57. Ra5 {[%clk 0:00:07]}  Rb3+ {[%clk 0:00:20]} 58. Kc7 {[%clk 0:00:08]}  Rc3+ {[%clk 0:00:20]} 59. Kd7 {[%clk 0:00:08]}  Rd3+ {[%clk 0:00:19]} 60. Ke7 {[%clk 0:00:08]}  e5 {[%clk 0:00:16]} 61. a8=Q {[%clk 0:00:08]}  exf4 {[%clk 0:00:17]} 62. Qf8+ {[%clk 0:00:08]}  Kh7 {[%clk 0:00:18]} 63. Kf7 {[%clk 0:00:08]}  Rd7+ {[%clk 0:00:17]} 64. Kf6 {[%clk 0:00:08]}  Rb7 {[%clk 0:00:15]} 65. Qe8 {[%clk 0:00:07]}  Rb6+ {[%clk 0:00:14]} 66. Kg5 {[%clk 0:00:07]}  Rb5+ {[%clk 0:00:06]} 67. Rxb5 {[%clk 0:00:07]}  f3 {[%clk 0:00:05]} 68. Rb7# {[%clk 0:00:08]} 1-0


[Site "https://www.chess.com"]

[Event "Titled Tuesday Blitz October 31 Early 2023"]
[White "Kiremitciyan, Ari"]
[Black "Bashirli, Saadat"]
[WhiteFideId "6373445"]
[BlackFideId "13429990"]
[WhiteElo "2557"]
[BlackElo "2402"]
[Result "1/2-1/2"]
[Round "6"]
[TimeControl "180+1"]
[Date "2023.10.31"]
[WhiteClock "0:00:04"]
[BlackClock "0:00:20"]
[Board "98"]

1. Nf3 {[%clk 0:03:00]}  d5 {[%clk 0:02:56]} 2. b3 {[%clk 0:02:59]}  Nf6 {[%clk 0:02:56]} 3. Bb2 {[%clk 0:02:59]}  Bg4 {[%clk 0:02:57]} 4. e3 {[%clk 0:02:59]}  e6 {[%clk 0:02:56]} 5. Be2 {[%clk 0:02:59]}  c6 {[%clk 0:02:56]} 6. O-O {[%clk 0:03:00]}  Nbd7 {[%clk 0:02:56]} 7. c4 {[%clk 0:03:01]}  Bd6 {[%clk 0:02:56]} 8. d4 {[%clk 0:03:01]}  O-O {[%clk 0:02:56]} 9. h3 {[%clk 0:02:58]}  Bf5 {[%clk 0:02:55]} 10. Nc3 {[%clk 0:02:58]}  Ne4 {[%clk 0:02:53]} 11. Nxe4 {[%clk 0:02:55]}  Bxe4 {[%clk 0:02:54]} 12. c5 {[%clk 0:02:48]}  Bc7 {[%clk 0:02:52]} 13. Nd2 {[%clk 0:02:48]}  Bg6 {[%clk 0:02:50]} 14. f4 {[%clk 0:02:48]}  Nf6 {[%clk 0:02:48]} 15. Bf3 {[%clk 0:02:45]}  Ne4 {[%clk 0:02:46]} 16. Nxe4 {[%clk 0:02:39]}  Bxe4 {[%clk 0:02:45]} 17. Bxe4 {[%clk 0:02:36]}  dxe4 {[%clk 0:02:45]} 18. b4 {[%clk 0:02:07]}  a6 {[%clk 0:02:42]} 19. a4 {[%clk 0:02:07]}  f5 {[%clk 0:02:37]} 20. Qb3 {[%clk 0:02:07]}  Qd5 {[%clk 0:02:36]} 21. Qxd5 {[%clk 0:02:06]}  exd5 {[%clk 0:02:36]} 22. Rfb1 {[%clk 0:02:06]}  Rfb8 {[%clk 0:02:31]} 23. Bc3 {[%clk 0:02:03]}  Kf7 {[%clk 0:02:30]} 24. Kf2 {[%clk 0:02:01]}  Ke6 {[%clk 0:02:29]} 25. g4 {[%clk 0:02:01]}  g6 {[%clk 0:02:29]} 26. g5 {[%clk 0:02:01]}  Kd7 {[%clk 0:02:27]} 27. h4 {[%clk 0:02:02]}  Bd8 {[%clk 0:02:18]} 28. h5 {[%clk 0:02:00]}  Be7 {[%clk 0:02:17]} 29. Rh1 {[%clk 0:01:58]}  Rh8 {[%clk 0:02:15]} 30. Rh3 {[%clk 0:01:51]}  gxh5 {[%clk 0:01:55]} 31. Rxh5 {[%clk 0:01:49]}  Rag8 {[%clk 0:01:54]} 32. Rah1 {[%clk 0:01:40]}  Rg7 {[%clk 0:01:53]} 33. Ke2 {[%clk 0:01:38]}  Kc7 {[%clk 0:01:44]} 34. Rh6 {[%clk 0:01:36]}  Kd7 {[%clk 0:01:38]} 35. Be1 {[%clk 0:01:31]}  Kc7 {[%clk 0:01:30]} 36. Kf1 {[%clk 0:01:24]}  Kd7 {[%clk 0:01:24]} 37. g6 {[%clk 0:01:18]}  Bf8 {[%clk 0:01:08]} 38. Rxh7 {[%clk 0:01:13]}  Rgxh7 {[%clk 0:01:03]} 39. gxh7 {[%clk 0:01:06]}  Bg7 {[%clk 0:01:03]} 40. Rh5 {[%clk 0:01:06]}  Ke6 {[%clk 0:01:03]} 41. Bh4 {[%clk 0:00:55]}  Rf8 {[%clk 0:00:53]} 42. Rg5 {[%clk 0:00:42]}  Kf6 {[%clk 0:00:30]} 43. Kg2 {[%clk 0:00:12]}  Rh8 {[%clk 0:00:21]} 44. Rh5+ {[%clk 0:00:09]}  Kg6 {[%clk 0:00:20]} 45. Rg5+ {[%clk 0:00:09]}  Kf6 {[%clk 0:00:20]} 46. Rh5+ {[%clk 0:00:04]}  Kg6 {[%clk 0:00:20]} 47. Rg5+ {[%clk 0:00:04]}  Kf6 {[%clk 0:00:20]} 1/2-1/2


[Site "https://www.chess.com"]

[Event "Titled Tuesday Blitz October 31 Early 2023"]
[White "Matveeva, Olga"]
[Black "LeoLV10"]
[WhiteFideId "24107018"]
[WhiteElo "2397"]
[BlackElo "2552"]
[Result "1-0"]
[Round "6"]
[TimeControl "180+1"]
[Date "2023.10.31"]
[WhiteClock "0:00:45"]
[BlackClock "0:00:29"]
[Board "100"]

1. d4 {[%clk 0:03:00]}  Nf6 {[%clk 0:02:59]} 2. c4 {[%clk 0:03:00]}  e6 {[%clk 0:02:59]} 3. g3 {[%clk 0:03:00]}  d5 {[%clk 0:02:54]} 4. Nf3 {[%clk 0:02:59]}  b6 {[%clk 0:02:54]} 5. Bg2 {[%clk 0:02:50]}  Bb4+ {[%clk 0:02:51]} 6. Bd2 {[%clk 0:02:50]}  a5 {[%clk 0:02:50]} 7. O-O {[%clk 0:02:46]}  O-O {[%clk 0:02:48]} 8. cxd5 {[%clk 0:02:43]}  exd5 {[%clk 0:02:47]} 9. Ne5 {[%clk 0:02:36]}  Bd6 {[%clk 0:02:38]} 10. Nc3 {[%clk 0:02:33]}  c6 {[%clk 0:02:38]} 11. Rc1 {[%clk 0:02:27]}  Ba6 {[%clk 0:02:36]} 12. Re1 {[%clk 0:02:18]}  Re8 {[%clk 0:02:35]} 13. Bf4 {[%clk 0:02:06]}  Nh5 {[%clk 0:02:31]} 14. e3 {[%clk 0:02:02]}  Nxf4 {[%clk 0:02:29]} 15. exf4 {[%clk 0:01:44]}  Bb7 {[%clk 0:02:12]} 16. Qh5 {[%clk 0:01:38]}  Rf8 {[%clk 0:02:06]} 17. f5 {[%clk 0:01:25]}  Nd7 {[%clk 0:01:48]} 18. Nxd7 {[%clk 0:01:14]}  Qxd7 {[%clk 0:01:49]} 19. f6 {[%clk 0:01:14]}  gxf6 {[%clk 0:01:49]} 20. Bh3 {[%clk 0:01:11]}  Bc8 {[%clk 0:01:23]} 21. Bxd7 {[%clk 0:01:10]}  Bxd7 {[%clk 0:01:24]} 22. Ne2 {[%clk 0:01:02]}  Kg7 {[%clk 0:01:12]} 23. Qf3 {[%clk 0:01:01]}  Rg8 {[%clk 0:01:08]} 24. Nf4 {[%clk 0:01:01]}  Bf5 {[%clk 0:00:43]} 25. Nxd5 {[%clk 0:00:53]}  Kg6 {[%clk 0:00:34]} 26. Rxc6 {[%clk 0:00:49]}  Rad8 {[%clk 0:00:30]} 27. Rxd6 {[%clk 0:00:46]}  Rxd6 {[%clk 0:00:28]} 28. Ne7+ {[%clk 0:00:45]}  Kg7 {[%clk 0:00:29]} 1-0


[Site "https://www.chess.com"]

[Event "Titled Tuesday Blitz October 31 Early 2023"]
[White "chess123456s"]
[Black "Kukreja Sankalp"]
[BlackFideId "45027676"]
[WhiteElo "2537"]
[BlackElo "2397"]
[Result "1-0"]
[Round "6"]
[TimeControl "180+1"]
[Date "2023.10.31"]
[WhiteClock "0:01:57"]
[BlackClock "0:00:24"]
[Board "101"]

1. e4 {[%clk 0:03:00]}  c5 {[%clk 0:02:57]} 2. Nf3 {[%clk 0:03:01]}  g6 {[%clk 0:02:48]} 3. d4 {[%clk 0:03:01]}  cxd4 {[%clk 0:02:49]} 4. Nxd4 {[%clk 0:03:01]}  Bg7 {[%clk 0:02:50]} 5. c4 {[%clk 0:03:02]}  Nc6 {[%clk 0:02:50]} 6. Be3 {[%clk 0:03:02]}  Nf6 {[%clk 0:02:50]} 7. Nc3 {[%clk 0:03:03]}  O-O {[%clk 0:02:48]} 8. Be2 {[%clk 0:03:03]}  b6 {[%clk 0:02:48]} 9. O-O {[%clk 0:03:02]}  Bb7 {[%clk 0:02:48]} 10. f3 {[%clk 0:03:02]}  e6 {[%clk 0:02:47]} 11. Ndb5 {[%clk 0:03:02]}  d5 {[%clk 0:02:47]} 12. cxd5 {[%clk 0:03:03]}  exd5 {[%clk 0:02:48]} 13. exd5 {[%clk 0:03:04]}  Nb4 {[%clk 0:02:48]} 14. d6 {[%clk 0:03:04]}  Nfd5 {[%clk 0:02:45]} 15. Bf2 {[%clk 0:03:03]}  a6 {[%clk 0:02:41]} 16. Nc7 {[%clk 0:03:02]}  Nxc7 {[%clk 0:02:39]} 17. Bxb6 {[%clk 0:03:01]}  Bxc3 {[%clk 0:01:55]} 18. Bxc7 {[%clk 0:02:49]}  Qg5 {[%clk 0:01:41]} 19. bxc3 {[%clk 0:02:48]}  Nd5 {[%clk 0:01:41]} 20. Qd4 {[%clk 0:02:36]}  Nxc7 {[%clk 0:00:57]} 21. dxc7 {[%clk 0:02:35]}  Rac8 {[%clk 0:00:58]} 22. Qb6 {[%clk 0:02:27]}  Qd5 {[%clk 0:00:30]} 23. Rab1 {[%clk 0:02:01]}  Ba8 {[%clk 0:00:24]} 24. Bxa6 {[%clk 0:01:57]} 1-0


[Site "https://www.chess.com"]

[Event "Titled Tuesday Blitz October 31 Early 2023"]
[White "Bazilius, Augustinas"]
[Black "La Villa Rivas, Marlon Javier"]
[WhiteFideId "12832251"]
[BlackFideId "3519546"]
[WhiteElo "2520"]
[BlackElo "2394"]
[Result "0-1"]
[Round "6"]
[TimeControl "180+1"]
[Date "2023.10.31"]
[WhiteClock "0:00:00"]
[BlackClock "0:00:35"]
[Board "103"]

1. d4 {[%clk 0:02:56]}  Nf6 {[%clk 0:02:59]} 2. c4 {[%clk 0:02:56]}  c5 {[%clk 0:02:58]} 3. d5 {[%clk 0:02:55]}  b5 {[%clk 0:02:59]} 4. cxb5 {[%clk 0:02:56]}  a6 {[%clk 0:02:59]} 5. e3 {[%clk 0:02:57]}  g6 {[%clk 0:02:57]} 6. Nc3 {[%clk 0:02:57]}  Bg7 {[%clk 0:02:57]} 7. Nf3 {[%clk 0:02:58]}  O-O {[%clk 0:02:57]} 8. a4 {[%clk 0:02:57]}  axb5 {[%clk 0:02:56]} 9. Bxb5 {[%clk 0:02:58]}  d6 {[%clk 0:02:56]} 10. e4 {[%clk 0:02:58]}  Qa5 {[%clk 0:02:55]} 11. O-O {[%clk 0:02:58]}  Ba6 {[%clk 0:02:52]} 12. Qe2 {[%clk 0:02:55]}  Bxb5 {[%clk 0:02:50]} 13. Nxb5 {[%clk 0:02:56]}  Na6 {[%clk 0:02:49]} 14. Bd2 {[%clk 0:02:49]}  Qb6 {[%clk 0:02:44]} 15. Bc3 {[%clk 0:02:41]}  Rfc8 {[%clk 0:02:35]} 16. b3 {[%clk 0:02:37]}  Nb4 {[%clk 0:02:31]} 17. Rfe1 {[%clk 0:02:25]}  e6 {[%clk 0:02:26]} 18. dxe6 {[%clk 0:02:08]}  fxe6 {[%clk 0:02:27]} 19. e5 {[%clk 0:02:03]}  dxe5 {[%clk 0:02:26]} 20. Bxe5 {[%clk 0:01:59]}  Rc6 {[%clk 0:02:16]} 21. Rad1 {[%clk 0:01:29]}  Nbd5 {[%clk 0:02:13]} 22. Nd2 {[%clk 0:01:21]}  Rf8 {[%clk 0:02:08]} 23. Nc4 {[%clk 0:01:21]}  Qd8 {[%clk 0:01:59]} 24. Bd6 {[%clk 0:00:51]}  Re8 {[%clk 0:01:53]} 25. Be5 {[%clk 0:00:48]}  Qe7 {[%clk 0:01:51]} 26. Na5 {[%clk 0:00:38]}  Ra6 {[%clk 0:01:46]} 27. Nc4 {[%clk 0:00:35]}  Nh5 {[%clk 0:01:42]} 28. Bxg7 {[%clk 0:00:33]}  Qxg7 {[%clk 0:01:43]} 29. Rxd5 {[%clk 0:00:32]}  Nf4 {[%clk 0:01:41]} 30. Qe4 {[%clk 0:00:09]}  Nxd5 {[%clk 0:01:41]} 31. Ncd6 {[%clk 0:00:05]}  Re7 {[%clk 0:01:33]} 32. Nc8 {[%clk 0:00:05]}  Rf7 {[%clk 0:01:25]} 33. Nbd6 {[%clk 0:00:04]}  Rf8 {[%clk 0:00:47]} 34. Qxe6+ {[%clk 0:00:04]}  Kh8 {[%clk 0:00:47]} 35. Qxd5 {[%clk 0:00:04]}  Qc3 {[%clk 0:00:44]} 36. Nf7+ {[%clk 0:00:03]}  Rxf7 {[%clk 0:00:41]} 37. Qd8+ {[%clk 0:00:02]}  Kg7 {[%clk 0:00:41]} 38. Rd1 {[%clk 0:00:02]}  Re6 {[%clk 0:00:37]} 39. Qd5 {[%clk 0:00:00]}  Re1+ {[%clk 0:00:35]} 0-1


[Site "https://www.chess.com"]

[Event "Titled Tuesday Blitz October 31 Early 2023"]
[White "Kahlert, Thomas"]
[Black "Heinemann, Josefine"]
[WhiteFideId "4625242"]
[BlackFideId "12900460"]
[WhiteElo "2391"]
[BlackElo "2511"]
[Result "1/2-1/2"]
[Round "6"]
[TimeControl "180+1"]
[Date "2023.10.31"]
[WhiteClock "0:00:39"]
[BlackClock "0:00:14"]
[Board "105"]

1. c4 {[%clk 0:03:00]}  e5 {[%clk 0:02:57]} 2. Nc3 {[%clk 0:02:59]}  Nf6 {[%clk 0:02:54]} 3. Nf3 {[%clk 0:02:59]}  Nc6 {[%clk 0:02:52]} 4. g3 {[%clk 0:02:59]}  d5 {[%clk 0:02:50]} 5. cxd5 {[%clk 0:02:59]}  Nxd5 {[%clk 0:02:51]} 6. Bg2 {[%clk 0:02:59]}  Nb6 {[%clk 0:02:50]} 7. O-O {[%clk 0:02:59]}  Be7 {[%clk 0:02:51]} 8. b3 {[%clk 0:02:59]}  O-O {[%clk 0:02:50]} 9. Bb2 {[%clk 0:02:59]}  Re8 {[%clk 0:02:49]} 10. Rc1 {[%clk 0:03:00]}  Bf8 {[%clk 0:02:49]} 11. d3 {[%clk 0:02:58]}  Nd4 {[%clk 0:02:48]} 12. Ne4 {[%clk 0:02:57]}  Nxf3+ {[%clk 0:02:47]} 13. Bxf3 {[%clk 0:02:57]}  c6 {[%clk 0:02:46]} 14. Bg2 {[%clk 0:02:57]}  a5 {[%clk 0:02:27]} 15. Nc5 {[%clk 0:02:56]}  Bxc5 {[%clk 0:02:24]} 16. Rxc5 {[%clk 0:02:56]}  Qd6 {[%clk 0:02:24]} 17. Qc1 {[%clk 0:02:53]}  a4 {[%clk 0:02:22]} 18. b4 {[%clk 0:02:51]}  Bg4 {[%clk 0:02:08]} 19. Re1 {[%clk 0:02:50]}  Nd7 {[%clk 0:02:08]} 20. Rc4 {[%clk 0:02:49]}  Be6 {[%clk 0:02:07]} 21. Rh4 {[%clk 0:02:43]}  Bxa2 {[%clk 0:02:03]} 22. Qg5 {[%clk 0:02:26]}  Qg6 {[%clk 0:01:59]} 23. Qxg6 {[%clk 0:02:21]}  hxg6 {[%clk 0:01:59]} 24. Ra1 {[%clk 0:02:21]}  Bb3 {[%clk 0:01:53]} 25. b5 {[%clk 0:02:21]}  cxb5 {[%clk 0:01:53]} 26. Bxb7 {[%clk 0:02:20]}  Rab8 {[%clk 0:01:51]} 27. Bc6 {[%clk 0:02:20]}  Red8 {[%clk 0:01:40]} 28. Rb4 {[%clk 0:02:20]}  f6 {[%clk 0:01:22]} 29. Rxb5 {[%clk 0:02:19]}  Rxb5 {[%clk 0:01:21]} 30. Bxb5 {[%clk 0:02:19]}  Nb6 {[%clk 0:01:08]} 31. Ba3 {[%clk 0:02:15]}  Rc8 {[%clk 0:01:03]} 32. Rc1 {[%clk 0:02:07]}  Rxc1+ {[%clk 0:01:01]} 33. Bxc1 {[%clk 0:02:07]}  Nd5 {[%clk 0:01:02]} 34. Kf1 {[%clk 0:02:02]}  Kf7 {[%clk 0:00:57]} 35. Ba3 {[%clk 0:01:57]}  Nc3 {[%clk 0:00:54]} 36. Bc6 {[%clk 0:01:35]}  Nb1 {[%clk 0:00:53]} 37. Bb2 {[%clk 0:01:35]}  a3 {[%clk 0:00:53]} 38. Ba1 {[%clk 0:01:34]}  a2 {[%clk 0:00:53]} 39. Ke1 {[%clk 0:01:33]}  Na3 {[%clk 0:00:54]} 40. Kd2 {[%clk 0:01:22]}  Nc2 {[%clk 0:00:43]} 41. Bb2 {[%clk 0:01:21]}  a1=Q {[%clk 0:00:43]} 42. Bxa1 {[%clk 0:01:21]}  Nxa1 {[%clk 0:00:43]} 43. Kc3 {[%clk 0:01:16]}  Nc2 {[%clk 0:00:35]} 44. e3 {[%clk 0:01:07]}  Ne1 {[%clk 0:00:32]} 45. Kxb3 {[%clk 0:01:06]}  Nxd3 {[%clk 0:00:32]} 46. f4 {[%clk 0:01:06]}  Nf2 {[%clk 0:00:28]} 47. Bf3 {[%clk 0:01:01]}  e4 {[%clk 0:00:27]} 48. Be2 {[%clk 0:00:59]}  g5 {[%clk 0:00:26]} 49. Kc4 {[%clk 0:00:58]}  gxf4 {[%clk 0:00:25]} 50. exf4 {[%clk 0:00:57]}  f5 {[%clk 0:00:21]} 51. Kd4 {[%clk 0:00:56]}  Nh3 {[%clk 0:00:13]} 52. Ke5 {[%clk 0:00:48]}  g6 {[%clk 0:00:12]} 53. g4 {[%clk 0:00:46]}  Ng1 {[%clk 0:00:10]} 54. gxf5 {[%clk 0:00:39]}  gxf5 {[%clk 0:00:10]} 55. Kxf5 {[%clk 0:00:39]}  Nxe2 {[%clk 0:00:10]} 56. Kxe4 {[%clk 0:00:39]}  Nxf4 {[%clk 0:00:10]} 57. Kxf4 {[%clk 0:00:39]}  Kg6 {[%clk 0:00:11]} 58. h4 {[%clk 0:00:39]}  Kh7 {[%clk 0:00:12]} 59. h5 {[%clk 0:00:39]}  Kh8 {[%clk 0:00:12]} 60. h6 {[%clk 0:00:40]}  Kh7 {[%clk 0:00:13]} 61. Kf3 {[%clk 0:00:39]}  Kxh6 {[%clk 0:00:14]} 1/2-1/2


[Site "https://www.chess.com"]

[Event "Titled Tuesday Blitz October 31 Early 2023"]
[White "MarijaKuznecova"]
[Black "Purtseladze, Maka"]
[BlackFideId "13602659"]
[WhiteElo "2385"]
[BlackElo "2510"]
[Result "0-1"]
[Round "6"]
[TimeControl "180+1"]
[Date "2023.10.31"]
[WhiteClock "0:00:00"]
[BlackClock "0:00:03"]
[Board "106"]

1. e4 {[%clk 0:03:00]}  c6 {[%clk 0:02:59]} 2. d4 {[%clk 0:03:00]}  d5 {[%clk 0:03:00]} 3. e5 {[%clk 0:03:00]}  c5 {[%clk 0:03:00]} 4. dxc5 {[%clk 0:03:00]}  Nc6 {[%clk 0:03:01]} 5. a3 {[%clk 0:02:59]}  Nxe5 {[%clk 0:02:59]} 6. b4 {[%clk 0:02:57]}  Nf6 {[%clk 0:02:50]} 7. Bb2 {[%clk 0:02:57]}  Ng6 {[%clk 0:02:46]} 8. Nf3 {[%clk 0:02:44]}  e6 {[%clk 0:02:41]} 9. Bd3 {[%clk 0:02:23]}  Nf4 {[%clk 0:02:39]} 10. O-O {[%clk 0:02:23]}  Nxd3 {[%clk 0:02:38]} 11. Qxd3 {[%clk 0:02:23]}  Be7 {[%clk 0:02:18]} 12. Nbd2 {[%clk 0:02:21]}  O-O {[%clk 0:02:13]} 13. Rad1 {[%clk 0:02:07]}  b6 {[%clk 0:02:11]} 14. c6 {[%clk 0:01:53]}  a6 {[%clk 0:02:02]} 15. c4 {[%clk 0:01:48]}  b5 {[%clk 0:01:53]} 16. c5 {[%clk 0:01:11]}  Qc7 {[%clk 0:01:18]} 17. Ne5 {[%clk 0:00:56]}  Ne8 {[%clk 0:01:14]} 18. Nb3 {[%clk 0:00:33]}  f6 {[%clk 0:01:12]} 19. Nf3 {[%clk 0:00:30]}  Qxc6 {[%clk 0:01:11]} 20. Nfd4 {[%clk 0:00:28]}  Qc7 {[%clk 0:01:10]} 21. f4 {[%clk 0:00:28]}  g6 {[%clk 0:00:58]} 22. Rde1 {[%clk 0:00:20]}  Ng7 {[%clk 0:00:58]} 23. Nf3 {[%clk 0:00:15]}  Bb7 {[%clk 0:00:57]} 24. Nbd4 {[%clk 0:00:15]}  Qd7 {[%clk 0:00:49]} 25. Qe2 {[%clk 0:00:09]}  Kf7 {[%clk 0:00:49]} 26. Qf2 {[%clk 0:00:06]}  Bc6 {[%clk 0:00:46]} 27. Qh4 {[%clk 0:00:05]}  Kg8 {[%clk 0:00:45]} 28. Qh3 {[%clk 0:00:04]}  Nf5 {[%clk 0:00:16]} 29. Nxf5 {[%clk 0:00:03]}  gxf5 {[%clk 0:00:14]} 30. Nd4 {[%clk 0:00:03]}  e5 {[%clk 0:00:05]} 31. fxe5 {[%clk 0:00:03]}  fxe5 {[%clk 0:00:05]} 32. Nxf5 {[%clk 0:00:03]}  Bg5 {[%clk 0:00:02]} 33. Qg4 {[%clk 0:00:02]}  Kh8 {[%clk 0:00:02]} 34. h4 {[%clk 0:00:03]}  Bf6 {[%clk 0:00:03]} 35. Bxe5 {[%clk 0:00:02]}  Bxe5 {[%clk 0:00:03]} 36. Rxe5 {[%clk 0:00:03]}  Rg8 {[%clk 0:00:03]} 37. Qf3 {[%clk 0:00:03]}  d4 {[%clk 0:00:03]} 38. Re4 {[%clk 0:00:02]}  Bxe4 {[%clk 0:00:03]} 39. Qxe4 {[%clk 0:00:03]}  Rae8 {[%clk 0:00:03]} 40. Qf3 {[%clk 0:00:02]}  Qf7 {[%clk 0:00:03]} 41. Nd6 {[%clk 0:00:02]}  Qxf3 {[%clk 0:00:03]} 42. Rxf3 {[%clk 0:00:03]}  Re7 {[%clk 0:00:03]} 43. Nf7+ {[%clk 0:00:02]}  Kg7 {[%clk 0:00:04]} 44. Ng5 {[%clk 0:00:03]}  Rd7 {[%clk 0:00:03]} 45. Ne6+ {[%clk 0:00:02]}  Kh8 {[%clk 0:00:04]} 46. Rd3 {[%clk 0:00:01]}  Re8 {[%clk 0:00:03]} 47. Ng5 {[%clk 0:00:02]}  Re3 {[%clk 0:00:03]} 48. Rd1 {[%clk 0:00:00]}  d3 {[%clk 0:00:03]} 0-1


[Site "https://www.chess.com"]

[Event "Titled Tuesday Blitz October 31 Early 2023"]
[White "vishwa_vijeta"]
[Black "Fernandez, Michael"]
[BlackFideId "5803560"]
[WhiteElo "2510"]
[BlackElo "2384"]
[Result "0-1"]
[Round "6"]
[TimeControl "180+1"]
[Date "2023.10.31"]
[WhiteClock "0:00:00"]
[BlackClock "0:00:09"]
[Board "107"]

1. e4 {[%clk 0:03:00]}  c6 {[%clk 0:02:59]} 2. Nf3 {[%clk 0:03:00]}  d5 {[%clk 0:02:59]} 3. exd5 {[%clk 0:03:01]}  cxd5 {[%clk 0:02:59]} 4. d4 {[%clk 0:03:02]}  Nf6 {[%clk 0:02:58]} 5. Bd3 {[%clk 0:03:03]}  Bg4 {[%clk 0:02:57]} 6. O-O {[%clk 0:03:03]}  Nc6 {[%clk 0:02:56]} 7. h3 {[%clk 0:03:03]}  Bxf3 {[%clk 0:02:56]} 8. Qxf3 {[%clk 0:03:04]}  Nxd4 {[%clk 0:02:51]} 9. Qg3 {[%clk 0:02:59]}  e6 {[%clk 0:02:45]} 10. c3 {[%clk 0:02:58]}  Nc6 {[%clk 0:02:43]} 11. Bf4 {[%clk 0:02:56]}  Nh5 {[%clk 0:02:38]} 12. Qf3 {[%clk 0:02:56]}  Nxf4 {[%clk 0:02:38]} 13. Qxf4 {[%clk 0:02:57]}  Bd6 {[%clk 0:02:28]} 14. Qe3 {[%clk 0:02:54]}  O-O {[%clk 0:02:26]} 15. Nd2 {[%clk 0:02:54]}  e5 {[%clk 0:02:21]} 16. c4 {[%clk 0:02:53]}  dxc4 {[%clk 0:02:13]} 17. Nxc4 {[%clk 0:02:52]}  Bc7 {[%clk 0:02:13]} 18. Rad1 {[%clk 0:02:48]}  Qh4 {[%clk 0:02:10]} 19. Be4 {[%clk 0:02:40]}  Rfd8 {[%clk 0:02:00]} 20. Bxc6 {[%clk 0:02:12]}  bxc6 {[%clk 0:02:00]} 21. Qc5 {[%clk 0:01:35]}  Rxd1 {[%clk 0:01:14]} 22. Rxd1 {[%clk 0:01:36]}  Qf6 {[%clk 0:01:12]} 23. Rd7 {[%clk 0:01:28]}  Bb6 {[%clk 0:01:08]} 24. Nxb6 {[%clk 0:01:24]}  axb6 {[%clk 0:01:08]} 25. Qxb6 {[%clk 0:01:24]}  g6 {[%clk 0:01:03]} 26. a3 {[%clk 0:01:14]}  Ra4 {[%clk 0:00:59]} 27. Qc5 {[%clk 0:00:51]}  Rd4 {[%clk 0:00:35]} 28. Rxd4 {[%clk 0:00:28]}  exd4 {[%clk 0:00:36]} 29. Qc4 {[%clk 0:00:28]}  Qe5 {[%clk 0:00:20]} 30. g3 {[%clk 0:00:10]}  Qe1+ {[%clk 0:00:19]} 31. Kg2 {[%clk 0:00:10]}  Qe4+ {[%clk 0:00:19]} 32. Kg1 {[%clk 0:00:09]}  Qb1+ {[%clk 0:00:13]} 33. Kg2 {[%clk 0:00:08]}  Qxb2 {[%clk 0:00:12]} 34. Qxc6 {[%clk 0:00:07]}  d3 {[%clk 0:00:12]} 35. Qd6 {[%clk 0:00:01]}  d2 {[%clk 0:00:11]} 36. a4 {[%clk 0:00:01]}  Qc2 {[%clk 0:00:08]} 37. Qd8+ {[%clk 0:00:01]}  Kg7 {[%clk 0:00:08]} 38. Qd4+ {[%clk 0:00:02]}  f6 {[%clk 0:00:08]} 39. Qd7+ {[%clk 0:00:00]}  Kh6 {[%clk 0:00:09]} 0-1


[Site "https://www.chess.com"]